bitfinex/quotes_ETHUSD_20250802
["timestamp","ask_amount","ask_price","bid_price","bid_amount"]
[1754143512560,0.001,3519.2,3518.9,0.4856]
[1754143512771,0.001,3519.2,3518.8,0.4856]
[1754143513290,0.001,3519.2,3518.9,0.9536]
[1754143513476,0.001,3519.2,3519.0,9.8100933]
[1754143513682,0.001,3519.2,3519.1,1.07636933]
[1754143514190,0.001,3519.2,3519.1,2.02996933]
[1754143516264,0.001,3519.2,3518.5,0.4755]
[1754143516265,0.94,3519.2,3518.5,0.4856]
[1754143517095,0.4765,3519.2,3518.6,0.02842039]
[1754143517297,0.001,3519.2,3519.1,9.8100933]
[1754143517595,0.001,3519.2,3519.1,11.74470263]
[1754143519489,0.001,3519.2,3519.1,11.27670263]
[1754143520633,0.001,3519.2,3519.1,11.74470263]
[1754143521531,0.001,3519.6,3519.2,0.55]
[1754143521910,0.001,3519.6,3519.2,1.4541]
[1754143522118,0.001,3519.6,3519.4,0.55]
[1754143522722,0.001,3519.6,3519.5,1.4541]
[1754143525515,0.4821,3521.0,3519.5,1.4541]
[1754143525751,0.4821,3521.0,3520.3,9.8100933]
[1754143525910,0.4821,3521.0,3520.4,0.98100933]
[1754143526863,3.0,3521.2,3520.4,0.98100933]
[1754143527150,0.4821,3521.2,3520.5,0.4606]
[1754143527362,0.9204,3521.1,3520.4,0.98100933]
[1754143527646,30.0,3521.0,3520.4,0.98100933]
[1754143527860,30.0,3521.0,3520.5,1.12517026]
[1754143528158,30.4821,3521.0,3520.5,1.12517026]
[1754143528317,0.9204,3520.9,3519.9,0.55]
[1754143528655,0.9204,3520.8,3519.9,0.55]
[1754143528831,0.4383,3520.8,3519.9,0.55]
[1754143529042,0.4821,3520.7,3520.0,1.08206933]
[1754143529417,30.0,3521.0,3520.3,9.8100933]
[1754143529618,0.4821,3520.9,3520.3,9.8100933]
[1754143530365,30.0,3521.5,3520.8,9.8100933]
[1754143530517,0.4821,3521.6,3520.8,9.8100933]
[1754143530718,0.4821,3521.6,3520.9,0.02840182]
[1754143530920,0.4821,3521.6,3520.8,9.8100933]
[1754143531344,0.4821,3521.6,3520.1,0.55]
[1754143531345,30.0,3521.3,3520.1,0.55]
[1754143531558,0.9204,3521.2,3520.1,1.78462626]
[1754143531761,30.9204,3521.1,3520.1,1.78462626]
[1754143531962,30.9204,3521.1,3519.5,3.0]
[1754143531963,0.9204,3521.0,3519.6,0.4606]
[1754143532164,30.0,3520.7,3519.6,0.4606]
[1754143532327,0.9204,3520.6,3519.6,0.4606]
[1754143532522,0.55,3522.0,3519.6,1.53201933]
[1754143532727,0.9204,3520.5,3519.6,0.4606]
[1754143533071,0.9204,3520.4,3519.3,9.8100933]
[1754143533373,3.0,3520.2,3518.8,0.4606]
[1754143533659,10.3600933,3521.5,3518.8,0.4606]
[1754143533660,3.0,3519.9,3518.8,0.4606]
[1754143533865,0.9204,3520.1,3519.0,9.8100933]
[1754143534067,0.4821,3520.1,3519.1,0.9041]
[1754143534271,0.4821,3520.1,3519.5,9.8100933]
[1754143534425,0.4383,3520.4,3519.5,9.8100933]
[1754143534768,0.9204,3520.4,3519.5,9.8100933]
[1754143535069,30.0,3520.1,3519.5,9.8100933]
[1754143535283,30.0,3520.2,3519.5,9.8100933]
[1754143535482,0.4821,3520.1,3519.5,9.8100933]
[1754143535684,0.4821,3520.5,3519.6,1.53201933]
[1754143535883,0.4821,3520.9,3520.0,9.8100933]
[1754143536092,3.0,3520.7,3520.0,9.8100933]
[1754143536294,0.4821,3520.9,3520.0,9.8100933]
[1754143536593,0.4821,3520.9,3520.1,1.88510933]
[1754143537192,0.4383,3521.1,3520.2,0.4606]
[1754143537547,3.0,3520.9,3520.2,0.4606]
[1754143537953,30.0,3521.0,3520.2,0.4606]
[1754143538148,0.4383,3521.1,3520.2,0.4606]
[1754143538362,0.4383,3521.1,3520.3,1.16952026]
[1754143538569,0.001,3521.6,3520.5,9.8100933]
[1754143538570,0.4383,3521.5,3520.5,9.8100933]
[1754143538857,0.9204,3521.5,3520.6,0.4606]
[1754143539068,3.0,3521.3,3520.6,0.4606]
[1754143539463,30.0,3521.4,3520.6,0.4606]
[1754143539668,0.001,3521.2,3520.6,0.4606]
[1754143540601,0.001,3521.2,3520.3,0.4435]
[1754143540602,3.0,3521.0,3520.3,0.4435]
[1754143540811,3.0,3521.0,3520.3,0.9041]
[1754143540968,0.4821,3521.1,3520.3,0.9041]
[1754143541168,0.4821,3521.1,3520.3,1.97551933]
[1754143542123,0.001,3521.2,3520.5,9.8100933]
[1754143542281,0.001,3521.2,3520.3,1.53201933]
[1754143542464,0.4831,3521.2,3520.3,0.4606]
[1754143542664,3.0,3521.0,3520.2,0.4435]
[1754143542905,0.4821,3520.9,3520.2,0.4435]
[1754143543562,0.4821,3520.9,3520.2,0.9041]
[1754143543768,0.001,3521.2,3520.3,1.53201933]
[1754143543965,0.4821,3521.0,3520.3,1.53201933]
[1754143544410,0.001,3521.2,3520.4,0.4606]
[1754143544614,0.001,3521.2,3520.4,0.93250586]
[1754143544911,0.001,3521.2,3520.5,9.8100933]
[1754143545208,0.001,3521.2,3520.6,1.17856126]
[1754143545406,0.001,3521.2,3521.0,9.8100933]
[1754143545762,0.001,3521.2,3521.1,0.9041]
[1754143546325,0.001,3521.2,3521.1,1.4541]
[1754143547725,0.001,3521.6,3521.5,10.3600933]
[1754143547905,0.001,3521.6,3521.5,11.39610263]
[1754143548218,0.001,3521.6,3521.5,12.30020263]
[1754143549330,0.4836621,3523.1,3521.6,0.55]
[1754143549624,0.0015621,3523.1,3522.4,9.8100933]
[1754143549920,0.0015621,3523.1,3522.5,1.55939825]
[1754143550081,0.0015621,3523.1,3522.5,1.53100933]
[1754143550417,0.0015621,3523.1,3522.5,2.43510933]
[1754143552129,0.0015621,3523.1,3522.5,2.46349825]
[1754143553182,0.0015621,3523.1,3522.5,2.43510933]
[1754143554640,0.0015621,3523.1,3522.5,2.92790933]
[1754143555039,0.0015621,3523.1,3522.5,2.95629825]
[1754143555701,0.0015621,3523.1,3522.5,2.92790933]
[1754143556049,0.0015621,3523.1,3523.0,10.3600933]
[1754143556743,0.0015621,3523.1,3523.0,11.7706933]
[1754143559056,0.0015621,3523.1,3523.0,11.3222933]
[1754143559438,0.0015621,3523.1,3523.0,11.7706933]
[1754143560856,0.0015621,3523.1,3523.0,10.8528933]
[1754143561171,0.0015621,3523.1,3523.0,11.98512263]
[1754143561446,0.9352621,3523.1,3522.1,9.8100933]
[1754143561635,0.9352621,3523.1,3522.5,0.4928]
[1754143561833,0.0015621,3523.1,3522.6,9.8100933]
[1754143562145,0.9337,3523.0,3522.0,0.4694]
[1754143562306,0.9337,3523.0,3521.9,9.8100933]
[1754143562307,0.9337,3522.9,3521.9,9.8100933]
[1754143562644,0.0015621,3523.1,3521.1,0.002]
[1754143562645,0.9337,3522.8,3522.3,0.4928]
[1754143562831,0.9337,3522.7,3522.0,9.8100933]
[1754143563005,0.4928,3522.9,3522.1,0.4694]
[1754143563210,0.0025621,3523.1,3522.5,9.8100933]
[1754143563547,0.0025621,3523.1,3522.6,1.00939745]
[1754143563753,0.0025621,3523.1,3522.6,0.98100933]
[1754143564047,0.4953621,3523.1,3522.6,1.45040933]
[1754143564247,0.4953621,3523.1,3522.7,0.02838731]
[1754143564820,0.4953621,3523.1,3522.6,1.45040933]
[1754143565022,0.4928,3523.0,3522.7,1.12605026]
[1754143565340,0.4928,3522.9,3522.7,1.12605026]
[1754143565536,0.9337,3522.8,3522.0,10.2794933]
[1754143565736,0.9337,3522.7,3521.9,0.853727]
[1754143565915,0.9337,3522.7,3521.7,9.8100933]
[1754143566114,0.9337,3522.7,3521.8,1.323119]
[1754143566351,0.9337,3522.7,3521.9,1.15816123]
[1754143566554,0.0025621,3523.1,3522.2,9.8100933]
[1754143566767,0.0025621,3523.1,3522.3,0.02839054]
[1754143566917,0.0025621,3523.1,3522.7,9.8100933]
[1754143567547,0.0025621,3523.1,3522.8,0.49778651]
[1754143567745,0.0025621,3523.1,3522.9,1.03078798]
[1754143568019,0.0025621,3523.1,3522.9,1.94858798]
[1754143568217,0.0025621,3523.1,3523.0,0.4694]
[1754143568832,0.0025621,3523.1,3523.0,0.49778489]
[1754143569035,0.0025621,3523.1,3523.0,0.4694]
[1754143569242,0.0025621,3523.1,3523.0,1.69454813]
[1754143569737,0.0025621,3523.1,3523.0,2.69294813]
[1754143571131,0.0025621,3523.1,3523.0,2.24454813]
[1754143571324,0.0025621,3523.1,3523.0,1.77514813]
[1754143571762,0.0025621,3523.1,3523.0,2.26794813]
[1754143571937,0.0025621,3523.1,3523.0,2.73734813]
[1754143572260,0.0025621,3523.1,3523.0,2.26794813]
[1754143573023,0.0025621,3523.1,3523.0,0.4928]
[1754143573024,0.9362621,3523.1,3523.0,0.4928]
[1754143573228,0.9362621,3523.1,3521.9,1.62756123]
[1754143573439,0.9337,3523.0,3521.9,1.62756123]
[1754143573641,0.0025621,3523.1,3521.9,2.48118923]
[1754143573642,0.4928,3522.9,3521.9,2.48118923]
[1754143573840,0.9337,3522.9,3521.9,1.15816123]
[1754143574043,0.9337,3522.8,3521.6,0.4694]
[1754143574239,0.9337,3522.8,3521.5,0.4928]
[1754143574471,0.9337,3522.7,3521.5,0.4928]
[1754143574633,30.0,3523.0,3521.9,9.8100933]
[1754143574968,0.9337,3522.9,3521.9,10.2794933]
[1754143575336,0.9337,3522.9,3522.1,0.55]
[1754143575543,0.4928,3522.9,3522.2,0.4694]
[1754143575875,0.00154351,3522.8,3522.3,0.14678]
[1754143576181,0.00154351,3522.8,3522.4,0.4694]
[1754143576462,0.00154351,3522.8,3522.4,10.7278933]
[1754143576705,0.00154351,3522.8,3522.5,0.4694]
[1754143576858,0.00154351,3522.8,3522.4,9.8100933]
[1754143577195,0.00154351,3522.8,3522.1,1.0194]
[1754143577196,0.4928,3522.7,3522.1,1.0194]
[1754143577489,0.4928,3522.7,3522.2,1.12778933]
[1754143577783,0.9337,3522.6,3521.9,9.8100933]
[1754143577991,0.4928,3522.5,3521.9,9.8100933]
[1754143578145,0.9337,3522.5,3521.9,9.8100933]
[1754143578341,0.9337,3522.5,3522.0,0.98100933]
[1754143578593,30.0,3522.7,3522.0,0.98100933]
[1754143578745,0.9337,3522.4,3521.9,9.8100933]
[1754143578950,0.00154351,3522.8,3521.9,9.8100933]
[1754143579157,0.9337,3522.3,3521.9,9.8100933]
[1754143579351,0.4928,3522.2,3521.6,1.07722933]
[1754143579556,0.4928,3522.2,3520.6,4.27]
[1754143579557,0.9337,3522.2,3521.7,1.18051226]
[1754143579755,0.00154351,3522.8,3521.0,3.4694]
[1754143579756,0.9337,3522.1,3521.0,3.4694]
[1754143580180,0.9337,3522.1,3521.2,0.55]
[1754143580485,0.00154351,3522.8,3521.5,0.55]
[1754143580699,0.00154351,3522.8,3521.3,0.4694]
[1754143580700,0.4928,3522.5,3521.9,9.8100933]
[1754143580849,0.9337,3522.5,3521.9,9.8100933]
[1754143581049,0.9337,3522.5,3521.6,0.55]
[1754143581290,0.9337,3522.4,3521.4,10.0424552]
[1754143581451,0.9337,3522.3,3521.5,1.05118552]
[1754143581652,0.4409,3522.3,3521.5,1.05118552]
[1754143581987,0.4877,3522.2,3521.5,1.54898552]
[1754143583283,3.0,3522.6,3521.5,1.05118552]
[1754143583488,0.9205,3522.1,3521.4,10.0424552]
[1754143583868,0.9205,3522.0,3521.1,0.002]
[1754143584065,0.9205,3521.9,3521.1,0.002]
[1754143584272,0.9205,3521.8,3521.1,0.002]
[1754143584495,0.00154351,3522.8,3521.1,0.002]
[1754143584496,0.9205,3521.7,3521.4,0.002]
[1754143584682,0.9205,3521.6,3521.4,0.002]
[1754143584888,0.00154351,3522.8,3521.4,0.002]
[1754143584889,0.9205,3521.5,3521.4,0.002]
[1754143587198,0.4877,3521.5,3521.4,0.002]
[1754143587705,0.4877,3522.0,3521.4,9.8120933]
[1754143587865,3.0,3521.8,3521.4,9.8120933]
[1754143588059,0.4877,3521.8,3521.4,9.8120933]
[1754143588262,0.4877,3521.8,3521.5,0.02839698]
[1754143588459,0.9205,3522.1,3521.4,10.84328263]
[1754143589259,0.4877,3522.0,3521.4,0.002]
[1754143589464,0.9205,3522.0,3521.4,0.002]
[1754143589685,3.0,3521.8,3521.4,0.002]
[1754143589993,0.9205,3521.9,3521.4,0.002]
[1754143590212,0.21896543,3522.8,3521.4,0.002]
[1754143590213,30.0,3522.7,3521.4,0.002]
[1754143590506,0.9205,3521.7,3521.4,0.002]
[1754143590812,0.9175,3521.7,3521.4,0.002]
[1754143590990,0.4877,3521.6,3521.4,0.002]
[1754143591359,33.0,3521.5,3521.4,0.002]
[1754143591996,33.4877,3521.5,3521.4,0.002]
[1754143592272,3.4877,3521.5,3521.4,0.002]
[1754143592923,3.9205,3521.5,3521.4,0.002]
[1754143593483,33.9205,3521.5,3521.4,0.002]
[1754143593707,3.4877,3521.5,3521.4,0.002]
[1754143593896,3.0,3521.5,3521.4,0.002]
[1754143595770,3.4877,3521.5,3521.4,0.002]
[1754143595971,33.9205,3521.5,3521.4,0.002]
[1754143598796,3.9205,3521.5,3521.4,0.002]
[1754143599112,33.9205,3521.5,3521.4,0.002]
[1754143599973,34.4705,3521.5,3521.4,0.002]
[1754143602002,4.4705,3521.5,3521.4,0.002]
[1754143602318,34.4705,3521.5,3521.4,0.002]
[1754143606721,33.0,3521.5,3521.4,0.002]
[1754143607330,33.4877,3521.5,3521.4,0.002]
[1754143607586,33.0,3521.5,3521.4,0.002]
[1754143607825,33.4877,3521.5,3521.4,0.002]
[1754143608483,33.0,3521.5,3521.4,0.002]
[1754143609525,33.4877,3521.5,3521.4,0.002]
[1754143609730,33.0,3521.5,3521.4,0.002]
[1754143610316,33.0,3521.5,3521.4,0.4998]
[1754143610487,33.0,3521.5,3521.4,0.002]
[1754143611433,30.0,3521.6,3521.4,0.002]
[1754143611629,30.0,3521.6,3521.5,0.9275]
[1754143611792,33.0,3521.6,3521.5,0.4978]
[1754143611993,33.0,3521.6,3521.5,0.9497]
[1754143612294,33.0,3521.6,3521.4,0.002]
[1754143612295,33.0,3521.5,3521.4,0.002]
[1754143612495,33.0,3521.5,3521.4,0.4972]
[1754143612808,0.001,3521.7,3521.4,0.9491]
[1754143613020,33.0,3521.5,3521.4,0.9491]
[1754143613195,33.0,3521.5,3521.4,0.4972]
[1754143613820,33.0,3521.5,3521.4,0.002]
[1754143614020,33.0,3521.5,3521.4,0.4972]
[1754143614231,33.0,3521.5,3521.4,0.002]
[1754143614745,3.0,3521.5,3521.4,0.9491]
[1754143614946,33.0,3521.5,3521.4,0.9491]
[1754143615105,33.0,3521.5,3521.4,0.002]
[1754143616132,33.0,3521.5,3521.4,0.4972]
[1754143616729,33.0,3521.5,3521.4,0.002]
[1754143617645,3.0,3521.5,3521.4,0.002]
[1754143617882,33.0,3521.5,3521.4,0.002]
[1754143618208,3.0,3521.5,3521.4,0.4972]
[1754143618547,3.0,3521.5,3521.4,0.9491]
[1754143620344,3.0,3521.5,3521.4,0.002]
[1754143620859,30.0,3521.6,3521.4,0.4972]
[1754143621011,0.001,3521.7,3521.4,0.9491]
[1754143621209,0.001,3521.7,3521.5,1.07591933]
[1754143621453,0.001,3521.7,3521.5,2.02301933]
[1754143621611,0.001,3521.7,3521.6,0.97549618]
[1754143622111,0.001,3521.7,3521.6,1.52549618]
[1754143622335,0.001,3521.7,3521.6,1.4971]
[1754143622546,0.001,3521.7,3521.6,1.75744171]
[1754143622748,0.001,3521.7,3521.6,1.78583789]
[1754143623148,0.001,3521.7,3521.6,1.75744171]
[1754143625149,0.001,3521.7,3521.6,1.78583789]
[1754143625323,0.00154351,3522.8,3521.6,1.78583789]
[1754143625535,0.00154351,3522.8,3521.8,10.3600933]
[1754143625927,0.00154351,3522.8,3522.3,9.8100933]
[1754143626272,0.00154351,3522.8,3522.4,0.02838973]
[1754143626435,0.00154351,3522.8,3522.5,0.55]
[1754143626857,0.00154351,3522.8,3522.6,0.97548812]
[1754143627055,0.00154351,3522.8,3522.7,0.70254881]
[1754143627225,0.00154351,3522.8,3522.7,1.64964881]
[1754143628166,0.001,3523.1,3522.8,0.55]
[1754143628369,0.001,3523.1,3523.0,10.3600933]
[1754143628529,0.001,3523.1,3523.0,11.52022751]
[1754143628871,0.001,3523.1,3523.0,12.46732751]
[1754143630677,0.001,3523.1,3523.0,12.95072751]
[1754143633890,0.001,3523.1,3523.0,2.59063421]
[1754143634305,0.001,3523.1,3523.0,3.14063421]
[1754143635060,0.001,3523.1,3523.0,1.64353421]
[1754143635277,0.001,3523.1,3522.7,0.15254881]
[1754143635278,0.4844,3523.1,3522.7,0.15254881]
[1754143635494,0.001,3523.1,3522.8,0.52358651]
[1754143635699,0.001,3523.1,3522.8,0.02838651]
[1754143635904,0.001,3523.1,3522.9,0.9471]
[1754143636068,0.001,3523.1,3523.0,0.02838489]
[1754143636400,0.001,3523.1,3523.0,1.13000439]
[1754143637173,0.001,3523.1,3523.0,1.22810439]
[1754143637381,0.001,3523.1,3523.0,1.68000439]
[1754143639886,0.001,3523.1,3523.0,1.22810439]
[1754143640260,0.001,3523.1,3523.0,0.73290439]
[1754143641902,0.001,3523.1,3523.0,1.19040439]
[1754143642147,0.001,3523.1,3523.0,1.67380439]
[1754143642443,0.001,3523.1,3523.0,0.66630439]
[1754143642746,0.001,3523.1,3523.0,11.91819769]
[1754143644362,0.001,3523.1,3523.0,0.66630439]
[1754143644512,0.001,3523.1,3523.0,0.4834]
[1754143644711,0.4565,3523.1,3523.0,0.4834]
[1754143645497,0.001,3523.1,3523.0,0.4834]
[1754143645726,0.4565,3523.1,3523.0,0.4834]
[1754143645902,0.9246,3523.1,3522.5,9.8100933]
[1754143646103,0.9246,3523.1,3522.7,0.4681]
[1754143646305,0.001,3523.1,3522.8,0.02838651]
[1754143646605,0.001,3523.1,3523.0,9.8100933]
[1754143647101,0.001,3523.1,3523.0,11.2518933]
[1754143647350,0.001,3523.1,3523.0,12.44616553]
[1754143652219,0.001,3523.1,3523.0,12.01186553]
[1754143653121,0.001,3523.1,3523.0,12.44616553]
[1754143653419,0.001,3523.1,3523.0,12.02246553]
[1754143653616,0.001,3523.1,3523.0,2.21237223]
[1754143653821,0.001,3523.1,3523.0,1.0181]
[1754143654030,0.9246,3523.1,3523.0,0.4681]
[1754143654821,0.9246,3523.1,3522.8,0.002]
[1754143655025,0.9236,3523.0,3522.8,0.002]
[1754143655431,0.9236,3522.9,3522.8,0.002]
[1754143662056,0.001,3523.1,3522.8,0.002]
[1754143662254,0.4555,3523.0,3522.8,0.002]
[1754143662573,0.9236,3522.9,3522.8,0.002]
[1754143663126,0.4555,3522.9,3522.8,0.002]
[1754143663767,0.001,3523.1,3522.8,0.002]
[1754143663951,0.4555,3523.0,3522.8,0.002]
[1754143664277,0.9236,3522.9,3522.8,0.002]
[1754143666999,0.001,3523.1,3522.8,0.002]
[1754143667159,0.001,3523.1,3523.0,6.33145788]
[1754143667799,0.001,3523.1,3523.0,7.22325788]
[1754143669009,0.001,3523.1,3523.0,0.8918]
[1754143669171,0.001,3523.1,3523.0,1.4418]
[1754143673690,0.001,3523.1,3523.0,1.4616]
[1754143674001,0.001,3523.1,3523.0,2.73335343]
[1754143677307,0.001,3523.1,3523.0,3.19915343]
[1754143678993,0.001,3523.5,3523.4,10.31423657]
[1754143679400,0.001,3523.5,3523.4,11.22583657]
[1754143680488,0.11099443,3525.1,3523.4,11.22583657]
[1754143680691,0.4658,3524.6,3523.9,9.76423657]
[1754143680935,0.4658,3524.6,3523.9,10.21483657]
[1754143681237,0.4658,3524.9,3524.0,0.57837684]
[1754143681434,0.4658,3524.9,3524.0,0.55]
[1754143681587,0.4347,3524.8,3523.8,0.55]
[1754143681792,0.4658,3524.7,3523.9,0.14616]
[1754143681992,0.4347,3524.6,3523.9,0.14616]
[1754143682810,0.4658,3524.5,3523.9,0.14616]
[1754143683691,0.4347,3524.4,3523.5,1.12258366]
[1754143683898,0.4658,3525.0,3524.2,9.76423657]
[1754143684125,0.4658,3525.0,3524.3,0.55]
[1754143684532,0.4658,3525.0,3524.2,0.545694]
[1754143684533,0.4347,3524.9,3524.2,0.545694]
[1754143684706,30.0,3524.6,3523.2,0.4506]
[1754143684906,3.4658,3524.5,3523.3,0.39116]
[1754143685105,30.0,3524.2,3523.3,0.4658]
[1754143685431,0.9005,3524.1,3523.3,0.4658]
[1754143685632,0.11099443,3525.1,3523.3,0.4658]
[1754143685633,0.9005,3524.0,3523.3,0.4658]
[1754143685834,0.9005,3523.9,3523.3,0.4658]
[1754143686038,0.9005,3523.9,3522.8,0.002]
[1754143686334,0.9005,3523.8,3522.8,1.02368366]
[1754143686550,0.9005,3523.7,3522.8,1.02368366]
[1754143686698,5.94782819,3525.1,3522.8,1.02368366]
[1754143686699,0.55,3525.0,3522.8,1.02368366]
[1754143686900,0.9005,3523.6,3522.8,1.48948366]
[1754143687249,0.4658,3523.5,3522.8,1.48948366]
[1754143687544,0.4658,3523.5,3522.9,1.21653202]
[1754143690839,0.4347,3523.4,3522.8,0.002]
[1754143691231,0.4658,3523.3,3522.8,0.002]
[1754143691617,0.4347,3523.2,3522.8,0.002]
[1754143692336,3.0,3524.5,3522.8,0.002]
[1754143692636,0.9005,3523.1,3522.8,0.002]
[1754143693063,0.4347,3523.1,3522.8,0.002]
[1754143693243,0.4658,3523.0,3522.8,0.002]
[1754143693414,3.0,3524.5,3522.8,0.03038651]
[1754143693748,0.4347,3523.4,3522.8,0.002]
[1754143693909,0.9005,3523.0,3522.8,0.002]
[1754143694226,0.4658,3523.4,3522.8,0.70859613]
[1754143694413,0.4658,3523.4,3523.1,6.32949622]
[1754143694820,0.4658,3523.7,3523.1,6.78009622]
[1754143695015,0.4658,3523.7,3523.4,6.32949622]
[1754143695218,0.4658,3523.7,3522.8,7.00970584]
[1754143695417,0.4347,3523.6,3522.8,7.00970584]
[1754143695707,0.4658,3523.5,3522.8,7.00970584]
[1754143696020,0.4347,3523.4,3522.8,6.33149622]
[1754143696232,0.4347,3523.4,3522.8,0.002]
[1754143696415,0.4658,3523.3,3522.8,0.002]
[1754143696847,0.4658,3523.2,3522.8,6.33149622]
[1754143697411,0.4658,3523.1,3522.8,6.33149622]
[1754143697718,3.0,3524.5,3522.8,6.33149622]
[1754143697927,3.0,3524.1,3523.1,6.32949622]
[1754143698219,3.0,3523.7,3522.8,6.33149622]
[1754143698430,0.9005,3523.6,3522.8,6.33149622]
[1754143698632,0.4658,3523.5,3522.8,6.33149622]
[1754143698931,0.4658,3523.5,3522.8,7.50640584]
[1754143700860,0.4658,3523.5,3523.1,6.32949622]
[1754143701153,0.4658,3523.5,3522.8,6.78209622]
[1754143701516,0.4347,3523.4,3522.8,6.78209622]
[1754143703524,0.495,3523.3,3522.8,0.002]
[1754143703924,0.4275,3523.2,3522.8,0.002]
[1754143704449,0.495,3523.2,3522.8,0.002]
[1754143704750,0.21252442,3523.9,3522.8,0.002]
[1754143704751,30.0,3523.0,3522.8,0.002]
[1754143705142,0.9225,3522.9,3522.8,0.002]
[1754143709781,30.9225,3522.9,3522.8,0.002]
[1754143709969,33.9225,3522.9,3522.8,0.002]
[1754143712555,33.495,3522.9,3522.8,0.002]
[1754143712755,33.0,3522.9,3522.8,0.002]
[1754143713204,30.0,3522.9,3522.8,0.002]
[1754143713352,30.0,3523.1,3522.8,0.002]
[1754143713689,33.0,3522.9,3522.8,0.002]
[1754143714209,33.0,3522.9,3522.8,0.4949]
[1754143714370,33.0,3522.9,3522.8,0.9395]
[1754143714371,3.0,3522.9,3522.8,0.9395]
[1754143714580,3.0,3522.9,3522.8,1.66923851]
[1754143715096,3.0,3522.9,3522.8,0.9395]
[1754143715804,3.0,3522.9,3522.8,0.4949]
[1754143716103,3.0,3522.9,3522.8,0.002]
[1754143716676,33.9225,3522.9,3522.8,0.002]
[1754143716881,33.0,3522.9,3522.8,0.002]
[1754143717794,0.495,3523.5,3522.8,0.9395]
[1754143717997,3.0,3523.1,3522.9,0.4929]
[1754143718313,3.0,3523.3,3523.0,0.4929]
[1754143718493,30.0,3523.4,3523.1,0.9375]
[1754143718669,0.001,3523.5,3523.1,0.4446]
[1754143719009,0.001,3523.5,3523.2,0.9375]
[1754143719207,0.001,3523.5,3523.3,0.4929]
[1754143719578,0.001,3523.5,3523.4,0.4929]
[1754143719977,0.001,3523.5,3523.4,0.9375]
[1754143720172,0.001,3523.5,3523.4,0.4929]
[1754143720393,0.001,3523.5,3523.1,0.4446]
[1754143720611,0.001,3523.5,3523.2,0.9375]
[1754143720790,0.001,3523.5,3523.3,0.4929]
[1754143721405,0.001,3523.5,3522.8,0.4949]
[1754143722075,0.001,3523.5,3522.9,0.4446]
[1754143722719,0.001,3523.5,3523.0,0.4929]
[1754143723425,0.001,3523.5,3523.1,0.4929]
[1754143723898,0.001,3523.5,3523.2,0.4929]
[1754143724509,0.001,3523.5,3522.8,0.002]
[1754143724715,0.001,3523.5,3523.0,0.4929]
[1754143724917,0.001,3523.5,3523.1,0.9375]
[1754143725225,0.001,3523.5,3523.2,0.9375]
[1754143725523,0.001,3523.5,3523.3,0.9375]
[1754143725895,0.001,3523.5,3522.8,9.76884492]
[1754143726124,0.001,3523.5,3523.4,0.4929]
[1754143726686,0.001,3523.5,3523.4,0.9375]
[1754143727582,0.001,3523.5,3523.0,0.9375]
[1754143727981,0.001,3523.5,3522.9,1.03188449]
[1754143728328,0.001,3523.5,3523.0,0.9375]
[1754143728492,0.001,3523.5,3523.1,1.17382294]
[1754143728880,0.001,3523.5,3522.8,0.002]
[1754143728881,30.0,3523.3,3522.8,0.002]
[1754143729228,0.495,3523.2,3522.8,0.002]
[1754143729729,0.495,3523.2,3522.8,0.4949]
[1754143730806,0.001,3523.5,3522.8,0.002]
[1754143731132,0.496,3523.5,3522.9,0.4929]
[1754143731344,0.496,3523.5,3522.8,0.4466]
[1754143731345,30.0,3523.4,3522.8,0.002]
[1754143731633,30.0,3523.3,3522.8,0.002]
[1754143731990,0.9129,3523.2,3522.8,0.002]
[1754143732417,0.4736,3523.1,3522.8,0.002]
[1754143732636,0.9129,3523.1,3522.8,0.002]
[1754143732932,0.4736,3523.0,3522.8,0.002]
[1754143733486,0.4736,3522.9,3522.8,0.002]
[1754143734389,30.9129,3522.9,3522.8,0.002]
[1754143734589,33.9129,3522.9,3522.8,0.002]
[1754143737193,33.4736,3522.9,3522.8,0.002]
[1754143737620,33.9129,3522.9,3522.8,0.002]
[1754143740346,33.4736,3522.9,3522.8,0.002]
[1754143740696,33.0,3522.9,3522.8,0.002]
[1754143740992,33.0,3522.9,3522.8,0.4682]
[1754143742053,3.0,3522.9,3522.8,0.8981]
[1754143742263,3.0,3522.9,3522.8,1.62115568]
[1754143742640,3.0,3522.9,3522.8,0.8981]
[1754143743353,3.0,3522.9,3522.8,0.4682]
[1754143745464,3.0,3522.9,3522.8,0.8981]
[1754143745666,3.0,3522.9,3522.8,7.23055682]
[1754143747773,3.0,3522.9,3522.8,0.002]
[1754143748887,3.0,3522.9,3522.8,0.8981]
[1754143749037,3.0,3522.9,3522.8,1.62115568]
[1754143749239,30.0,3523.4,3522.8,1.62115568]
[1754143749456,30.0,3523.2,3522.9,0.8961]
[1754143749773,30.0,3523.2,3523.0,0.8961]
[1754143750075,0.001,3523.5,3523.1,0.8961]
[1754143750442,3.0,3523.3,3523.1,0.8961]
[1754143750872,30.0,3523.4,3523.1,0.8961]
[1754143751072,0.001,3523.5,3523.1,0.4662]
[1754143751275,0.001,3523.5,3522.8,0.4682]
[1754143751276,3.4736,3523.3,3522.8,0.4682]
[1754143751538,0.001,3523.5,3522.9,0.8961]
[1754143751883,30.0,3523.4,3522.9,0.8961]